[Event "*** SCC Grand Prix: Titled Tuesday Blitz"]
[Site "Chess.com"]
[Date "2020.07.14"]
[Round "5"]
[White "Dr_crypt"]
[Black "AldokhinIvan"]
[Result "0-1"]
[WhiteElo "2397"]
[BlackElo "2577"]
[TimeControl "180+1"]
[EndTime "10:58:32 PDT"]
[Termination "AldokhinIvan won by checkmate"]

1. d4 {[%clk 0:03:00.9]} 1... Nf6 {[%clk 0:02:54.1]} 2. Bf4 {[%clk 0:02:56.1]}
2... c5 {[%clk 0:02:45.4]} 3. c3 {[%clk 0:02:55.3]} 3... e6 {[%clk 0:02:42.9]}
4. e3 {[%clk 0:02:55]} 4... d5 {[%clk 0:02:41.7]} 5. Nf3 {[%clk 0:02:54.5]} 5...
Nc6 {[%clk 0:02:41.8]} 6. Nbd2 {[%clk 0:02:49.3]} 6... Bd6 {[%clk 0:02:41.5]} 7.
Bg3 {[%clk 0:02:47.7]} 7... O-O {[%clk 0:02:40.6]} 8. Bd3 {[%clk 0:02:46.6]}
8... Re8 {[%clk 0:02:38.3]} 9. Ne5 {[%clk 0:02:46]} 9... Qc7 {[%clk 0:02:28.5]}
10. f4 {[%clk 0:02:40.8]} 10... b6 {[%clk 0:02:10.8]} 11. Bh4 {[%clk 0:02:34.6]}
11... Be7 {[%clk 0:01:51.9]} 12. Qc2 {[%clk 0:02:19.4]} 12... g6 {[%clk
0:01:44.5]} 13. g4 {[%clk 0:02:10.9]} 13... Nxe5 {[%clk 0:01:42.5]} 14. fxe5
{[%clk 0:02:09.7]} 14... Nxg4 {[%clk 0:01:40.1]} 15. Bg3 {[%clk 0:01:58.7]}
15... Nxe3 {[%clk 0:01:38.3]} 16. Qb1 {[%clk 0:01:56.4]} 16... cxd4 {[%clk
0:01:29.1]} 17. cxd4 {[%clk 0:01:55.8]} 17... Bd7 {[%clk 0:01:04.2]} 18. Ke2
{[%clk 0:01:54.9]} 18... Nf5 {[%clk 0:01:04.4]} 19. Qf1 {[%clk 0:01:39.6]} 19...
Nxd4+ {[%clk 0:01:01.6]} 20. Kd1 {[%clk 0:01:35.3]} 20... Ba4+ {[%clk
0:01:00.9]} 21. b3 {[%clk 0:01:34.6]} 21... Bd7 {[%clk 0:00:51.1]} 22. Rc1
{[%clk 0:01:33.6]} 22... Qb7 {[%clk 0:00:50.5]} 23. Qf4 {[%clk 0:01:32.3]} 23...
Nf5 {[%clk 0:00:48.1]} 24. Bxf5 {[%clk 0:01:32]} 24... exf5 {[%clk 0:00:47.6]}
25. h4 {[%clk 0:01:30.4]} 25... d4 {[%clk 0:00:47.3]} 26. Ke2 {[%clk 0:01:28.3]}
26... Bb5+ {[%clk 0:00:45.4]} 27. Kf2 {[%clk 0:01:28.1]} 27... Rac8 {[%clk
0:00:37.4]} 28. h5 {[%clk 0:01:26.2]} 28... Rxc1 {[%clk 0:00:37]} 29. Rxc1
{[%clk 0:01:26.9]} 29... Rc8 {[%clk 0:00:37.5]} 30. hxg6 {[%clk 0:01:17.6]}
30... Rxc1 {[%clk 0:00:36]} 31. gxh7+ {[%clk 0:01:17.5]} 31... Kxh7 {[%clk
0:00:33.1]} 32. Qxf5+ {[%clk 0:01:17.5]} 32... Kg8 {[%clk 0:00:32.5]} 33. e6
{[%clk 0:01:16.5]} 33... Bf8 {[%clk 0:00:23.5]} 34. Qg5+ {[%clk 0:01:13.5]}
34... Bg7 {[%clk 0:00:23.7]} 35. Qd8+ {[%clk 0:01:11.6]} 35... Kh7 {[%clk
0:00:23.3]} 36. Qh4+ {[%clk 0:01:10.2]} 36... Kg6 {[%clk 0:00:21.6]} 37. Qg4+
{[%clk 0:01:04.3]} 37... Kh7 {[%clk 0:00:21.4]} 38. Qh4+ {[%clk 0:01:03.3]}
38... Bh6 {[%clk 0:00:19.3]} 39. Bf4 {[%clk 0:00:55.5]} 39... fxe6 {[%clk
0:00:19.5]} 40. Qxh6+ {[%clk 0:00:54.8]} 40... Kg8 {[%clk 0:00:19.7]} 41. Qg6+
{[%clk 0:00:42.8]} 41... Qg7 {[%clk 0:00:19.1]} 42. Qxe6+ {[%clk 0:00:42.9]}
42... Qf7 {[%clk 0:00:19]} 43. Qg4+ {[%clk 0:00:42.6]} 43... Kf8 {[%clk
0:00:18.2]} 44. Nf3 {[%clk 0:00:38.3]} 44... Rf1+ {[%clk 0:00:16.5]} 45. Kg3
{[%clk 0:00:37]} 45... Bd7 {[%clk 0:00:15.8]} 46. Bh6+ {[%clk 0:00:31.6]} 46...
Ke8 {[%clk 0:00:15.5]} 47. Qe4+ {[%clk 0:00:30.9]} 47... Qe7 {[%clk 0:00:14.2]}
48. Qg6+ {[%clk 0:00:30.3]} 48... Qf7 {[%clk 0:00:14.5]} 49. Qe4+ {[%clk
0:00:30.1]} 49... Qe6 {[%clk 0:00:13.9]} 50. Qxe6+ {[%clk 0:00:22.1]} 50... Bxe6
{[%clk 0:00:13.9]} 51. Nxd4 {[%clk 0:00:23]} 51... Bd5 {[%clk 0:00:14.1]} 52.
Bf4 {[%clk 0:00:16.4]} 52... Kd7 {[%clk 0:00:14.1]} 53. Nf5 {[%clk 0:00:14.6]}
53... Rg1+ {[%clk 0:00:13.3]} 54. Kf2 {[%clk 0:00:14.3]} 54... Rg2+ {[%clk
0:00:13.7]} 55. Ke3 {[%clk 0:00:13.8]} 55... Rxa2 {[%clk 0:00:14.6]} 56. Kd4
{[%clk 0:00:14.3]} 56... Bxb3 {[%clk 0:00:14.7]} 57. Ne3 {[%clk 0:00:12.9]}
57... Be6 {[%clk 0:00:15.2]} 58. Be5 {[%clk 0:00:10.7]} 58... Ra4+ {[%clk
0:00:16.1]} 59. Kd3 {[%clk 0:00:10.9]} 59... b5 {[%clk 0:00:16.3]} 60. Bd4
{[%clk 0:00:10.9]} 60... Ra3+ {[%clk 0:00:16]} 61. Kc2 {[%clk 0:00:09.8]} 61...
a5 {[%clk 0:00:16.5]} 62. Kb2 {[%clk 0:00:10]} 62... b4 {[%clk 0:00:16.9]} 63.
Nc2 {[%clk 0:00:09]} 63... Ra2+ {[%clk 0:00:17.3]} 64. Kb1 {[%clk 0:00:08.7]}
64... Kc6 {[%clk 0:00:17.6]} 65. Bb2 {[%clk 0:00:07.6]} 65... Ra4 {[%clk
0:00:15.1]} 66. Nd4+ {[%clk 0:00:07]} 66... Kd5 {[%clk 0:00:15.3]} 67. Nb5
{[%clk 0:00:04.8]} 67... Kc4 {[%clk 0:00:14.3]} 68. Nd6+ {[%clk 0:00:04.6]}
68... Kb3 {[%clk 0:00:14.2]} 69. Nb5 {[%clk 0:00:04.4]} 69... Bf5+ {[%clk
0:00:13.8]} 70. Kc1 {[%clk 0:00:04.3]} 70... Bd3 {[%clk 0:00:13.3]} 71. Nd4+
{[%clk 0:00:04.4]} 71... Kc4 {[%clk 0:00:13.5]} 72. Nc6 {[%clk 0:00:03.3]} 72...
Be2 {[%clk 0:00:11.8]} 73. Ne5+ {[%clk 0:00:03.3]} 73... Kd5 {[%clk 0:00:12]}
74. Nd7 {[%clk 0:00:01.4]} 74... Ra2 {[%clk 0:00:11.3]} 75. Nb6+ {[%clk
0:00:01.3]} 75... Ke4 {[%clk 0:00:11.4]} 76. Kb1 {[%clk 0:00:01.1]} 76... Rxb2+
{[%clk 0:00:07.3]} 77. Kxb2 {[%clk 0:00:02]} 77... Bb5 {[%clk 0:00:06.5]} 78.
Nd7 {[%clk 0:00:01.7]} 78... Bxd7 {[%clk 0:00:05.1]} 79. Kb3 {[%clk 0:00:01.5]}
79... Kd4 {[%clk 0:00:06]} 80. Kb2 {[%clk 0:00:02.4]} 80... a4 {[%clk
0:00:05.7]} 81. Ka2 {[%clk 0:00:02.4]} 81... Be6+ {[%clk 0:00:06.6]} 82. Kb2
{[%clk 0:00:03.3]} 82... a3+ {[%clk 0:00:07.1]} 83. Ka1 {[%clk 0:00:03.4]} 83...
Kc3 {[%clk 0:00:07.4]} 84. Kb1 {[%clk 0:00:04.3]} 84... b3 {[%clk 0:00:07.8]}
85. Ka1 {[%clk 0:00:05.2]} 85... b2+ {[%clk 0:00:08.2]} 86. Kb1 {[%clk
0:00:06.1]} 86... Bf5+ {[%clk 0:00:08.6]} 87. Ka2 {[%clk 0:00:05.4]} 87... b1=Q+
{[%clk 0:00:09.5]} 88. Kxa3 {[%clk 0:00:06.3]} 88... Qb3# {[%clk 0:00:10]} 0-1

[Event "*** SCC Grand Prix: Titled Tuesday Blitz"]
[Site "Chess.com"]
[Date "2020.07.14"]
[Round "6"]
[White "LyonBeast"]
[Black "mishikomchedlishvili"]
[Result "0-1"]
[WhiteElo "3009"]
[BlackElo "2775"]
[TimeControl "180+1"]
[EndTime "11:00:46 PDT"]
[Termination "mishikomchedlishvili won by resignation"]

1. b3 {[%clk 0:02:58.7]} 1... d5 {[%clk 0:02:59.1]} 2. Bb2 {[%clk 0:02:58.7]}
2... Bg4 {[%clk 0:02:58.6]} 3. g3 {[%clk 0:02:57.4]} 3... c6 {[%clk 0:02:56.5]}
4. Bg2 {[%clk 0:02:57.6]} 4... Nd7 {[%clk 0:02:56.7]} 5. Nf3 {[%clk 0:02:57.8]}
5... Ngf6 {[%clk 0:02:55.5]} 6. O-O {[%clk 0:02:57.9]} 6... e6 {[%clk
0:02:55.6]} 7. d3 {[%clk 0:02:56.5]} 7... Bc5 {[%clk 0:02:53.5]} 8. Nbd2 {[%clk
0:02:56.4]} 8... O-O {[%clk 0:02:47.3]} 9. e3 {[%clk 0:02:55.3]} 9... a5 {[%clk
0:02:46]} 10. Ba3 {[%clk 0:02:54.6]} 10... Bxa3 {[%clk 0:02:44.9]} 0-1

[Event "*** SCC Grand Prix: Titled Tuesday Blitz"]
[Site "Chess.com"]
[Date "2020.07.14"]
[Round "6"]
[White "RusPakhom"]
[Black "guillembaches"]
[Result "1/2-1/2"]
[WhiteElo "2282"]
[BlackElo "2412"]
[TimeControl "180+1"]
[EndTime "11:02:10 PDT"]
[Termination "Game drawn by agreement"]

1. e4 {[%clk 0:03:00.9]} 1... c5 {[%clk 0:02:59.7]} 2. c3 {[%clk 0:03:00.2]}
2... d5 {[%clk 0:02:59.3]} 3. exd5 {[%clk 0:02:59.8]} 3... Qxd5 {[%clk
0:03:00.2]} 4. d4 {[%clk 0:03:00]} 4... Nc6 {[%clk 0:02:59.9]} 5. Nf3 {[%clk
0:02:58.7]} 5... Bg4 {[%clk 0:02:59.9]} 6. Be2 {[%clk 0:02:58.7]} 6... cxd4
{[%clk 0:02:59.9]} 7. cxd4 {[%clk 0:02:58.4]} 7... e6 {[%clk 0:03:00]} 8. O-O
{[%clk 0:02:57.9]} 8... Bb4 {[%clk 0:02:58.6]} 9. a3 {[%clk 0:02:57.3]} 9... Ba5
{[%clk 0:02:58.8]} 10. b4 {[%clk 0:02:57.4]} 10... Bb6 {[%clk 0:02:59]} 11. Nc3
{[%clk 0:02:57.8]} 11... Qd8 {[%clk 0:02:54.6]} 12. d5 {[%clk 0:02:57.5]} 12...
exd5 {[%clk 0:02:53.2]} 13. Nxd5 {[%clk 0:02:57.9]} 13... Nge7 {[%clk
0:02:49.5]} 14. Nxb6 {[%clk 0:02:55.2]} 14... axb6 {[%clk 0:02:31.5]} 15. Be3
{[%clk 0:02:41.6]} 15... Nd5 {[%clk 0:02:22.7]} 1/2-1/2

[Event "*** SCC Grand Prix: Titled Tuesday Blitz"]
[Site "Chess.com"]
[Date "2020.07.14"]
[Round "6"]
[White "MIJUAREZ"]
[Black "Matols"]
[Result "1-0"]
[WhiteElo "2391"]
[BlackElo "2217"]
[TimeControl "180+1"]
[EndTime "11:02:22 PDT"]
[Termination "MIJUAREZ won by resignation"]

1. e4 {[%clk 0:03:00.9]} 1... e6 {[%clk 0:03:00]} 2. d4 {[%clk 0:02:59.9]} 2...
d5 {[%clk 0:02:59.9]} 3. e5 {[%clk 0:03:00.2]} 3... c5 {[%clk 0:02:59.5]} 4. c3
{[%clk 0:03:00.9]} 4... Nc6 {[%clk 0:02:59.5]} 5. Nf3 {[%clk 0:03:01.6]} 5...
Qb6 {[%clk 0:02:58.3]} 6. a3 {[%clk 0:03:02.1]} 6... Nh6 {[%clk 0:02:58]} 7. b4
{[%clk 0:03:01.7]} 7... cxd4 {[%clk 0:02:56]} 8. cxd4 {[%clk 0:03:02.3]} 8...
Nf5 {[%clk 0:02:56]} 9. Bb2 {[%clk 0:03:03]} 9... Be7 {[%clk 0:02:51.2]} 10. Bd3
{[%clk 0:03:01.1]} 10... O-O {[%clk 0:02:39.2]} 11. O-O {[%clk 0:02:31.8]} 11...
Bd7 {[%clk 0:02:29]} 12. Nc3 {[%clk 0:02:26.3]} 12... Nh4 {[%clk 0:02:11.5]} 13.
Nxh4 {[%clk 0:02:22.7]} 13... Bxh4 {[%clk 0:02:10.6]} 14. Qh5 {[%clk 0:02:21.2]}
1-0

[Event "*** SCC Grand Prix: Titled Tuesday Blitz"]
[Site "Chess.com"]
[Date "2020.07.14"]
[Round "6"]
[White "GAusal"]
[Black "giantslayer83"]
[Result "0-1"]
[WhiteElo "2060"]
[BlackElo "2727"]
[TimeControl "180+1"]
[EndTime "11:03:14 PDT"]
[Termination "giantslayer83 won by resignation"]

1. d4 {[%clk 0:03:00.9]} 1... f5 {[%clk 0:02:58.8]} 2. g3 {[%clk 0:02:59]} 2...
Nf6 {[%clk 0:02:58.9]} 3. Bg2 {[%clk 0:02:59.2]} 3... g6 {[%clk 0:02:59.4]} 4.
Nh3 {[%clk 0:02:59.1]} 4... Bg7 {[%clk 0:02:58.9]} 5. O-O {[%clk 0:02:59]} 5...
O-O {[%clk 0:02:59]} 6. c4 {[%clk 0:02:57.6]} 6... d6 {[%clk 0:02:58.5]} 7. Nc3
{[%clk 0:02:57.2]} 7... c6 {[%clk 0:02:53.2]} 8. e4 {[%clk 0:02:50.7]} 8... fxe4
{[%clk 0:02:51.3]} 9. Nf4 {[%clk 0:02:45.2]} 9... d5 {[%clk 0:02:44.1]} 10. cxd5
{[%clk 0:02:42.8]} 10... cxd5 {[%clk 0:02:45]} 11. Qb3 {[%clk 0:02:42.5]} 11...
e6 {[%clk 0:02:45.4]} 12. Re1 {[%clk 0:02:16.9]} 12... Nc6 {[%clk 0:02:42.5]}
13. Be3 {[%clk 0:02:14.6]} 13... Kh8 {[%clk 0:02:40.3]} 14. h4 {[%clk
0:02:10.6]} 14... Ng4 {[%clk 0:02:38.9]} 15. a3 {[%clk 0:02:09.1]} 15... Nxd4
{[%clk 0:02:35.4]} 16. Bxd4 {[%clk 0:02:01.6]} 16... Bxd4 {[%clk 0:02:36.3]} 17.
Rad1 {[%clk 0:02:01]} 17... Bxf2+ {[%clk 0:02:32.9]} 18. Kh1 {[%clk 0:01:58.7]}
18... Bxg3 {[%clk 0:02:30.3]} 19. Nh3 {[%clk 0:01:45]} 19... Qxh4 {[%clk
0:02:28.5]} 20. Ne2 {[%clk 0:01:39.6]} 20... Nf2+ {[%clk 0:02:23]} 21. Kg1
{[%clk 0:01:35.5]} 21... Nxh3+ {[%clk 0:02:23.1]} 22. Bxh3 {[%clk 0:01:32.9]}
22... Bxe1 {[%clk 0:02:21.5]} 23. Qb4 {[%clk 0:01:28.3]} 23... Bxb4 {[%clk
0:02:18.5]} 0-1

[Event "*** SCC Grand Prix: Titled Tuesday Blitz"]
[Site "Chess.com"]
[Date "2020.07.14"]
[Round "6"]
[White "harlem4brew"]
[Black "PattyCastillo"]
[Result "0-1"]
[WhiteElo "2094"]
[BlackElo "1946"]
[TimeControl "180+1"]
[EndTime "11:03:14 PDT"]
[Termination "PattyCastillo won by checkmate"]

1. d4 {[%clk 0:03:00.9]} 1... d5 {[%clk 0:02:59.3]} 2. Nf3 {[%clk 0:02:59.4]}
2... Nf6 {[%clk 0:02:58.9]} 3. c4 {[%clk 0:02:58.2]} 3... c6 {[%clk 0:02:58.8]}
4. Nc3 {[%clk 0:02:57.4]} 4... e6 {[%clk 0:02:56.3]} 5. Bg5 {[%clk 0:02:56.2]}
5... h6 {[%clk 0:02:53.6]} 6. Bxf6 {[%clk 0:02:55.6]} 6... Qxf6 {[%clk
0:02:53.3]} 7. e4 {[%clk 0:02:56.5]} 7... dxe4 {[%clk 0:02:43.9]} 8. Nxe4 {[%clk
0:02:53.1]} 8... Qf4 {[%clk 0:02:43.2]} 9. Bd3 {[%clk 0:02:50.9]} 9... Bb4+
{[%clk 0:02:36.7]} 10. Nfd2 {[%clk 0:02:49]} 10... O-O {[%clk 0:02:20.6]} 11.
O-O {[%clk 0:02:44.2]} 11... e5 {[%clk 0:02:15.3]} 12. dxe5 {[%clk 0:02:36.4]}
12... Qxe5 {[%clk 0:02:08.4]} 13. Qb3 {[%clk 0:02:32.7]} 13... Ba5 {[%clk
0:01:53.1]} 14. Rae1 {[%clk 0:02:29.1]} 14... Bc7 {[%clk 0:01:44.1]} 15. Nf3
{[%clk 0:02:28.1]} 15... Qf4 {[%clk 0:01:37.1]} 16. Bb1 {[%clk 0:02:21.8]} 16...
Bg4 {[%clk 0:01:35.3]} 17. h3 {[%clk 0:01:59.3]} 17... Bxf3 {[%clk 0:01:30.3]}
18. Qxf3 {[%clk 0:02:00.2]} 18... Qh2# {[%clk 0:01:29.8]} 0-1

[Event "*** SCC Grand Prix: Titled Tuesday Blitz"]
[Site "Chess.com"]
[Date "2020.07.14"]
[Round "6"]
[White "LastHeroJr"]
[Black "deep306"]
[Result "1-0"]
[WhiteElo "2467"]
[BlackElo "2590"]
[TimeControl "180+1"]
[EndTime "11:03:20 PDT"]
[Termination "LastHeroJr won by checkmate"]

1. e4 {[%clk 0:03:00.9]} 1... e5 {[%clk 0:02:59.9]} 2. Nf3 {[%clk 0:03:01]} 2...
Nc6 {[%clk 0:03:00.1]} 3. Bc4 {[%clk 0:03:01.2]} 3... Bc5 {[%clk 0:02:59.6]} 4.
O-O {[%clk 0:02:59.5]} 4... Nf6 {[%clk 0:02:59]} 5. d3 {[%clk 0:02:58.6]} 5...
O-O {[%clk 0:02:55.8]} 6. a4 {[%clk 0:02:58.1]} 6... a6 {[%clk 0:02:55.4]} 7. c3
{[%clk 0:02:57.7]} 7... Ba7 {[%clk 0:02:47.9]} 8. h3 {[%clk 0:02:53.4]} 8... h6
{[%clk 0:02:46.8]} 9. Nbd2 {[%clk 0:02:52.3]} 9... d6 {[%clk 0:02:46.6]} 10. Re1
{[%clk 0:02:45.7]} 10... Ne7 {[%clk 0:02:45.9]} 11. Nf1 {[%clk 0:02:38.9]} 11...
Ng6 {[%clk 0:02:45.6]} 12. Ng3 {[%clk 0:02:38.8]} 12... c6 {[%clk 0:02:41.2]}
13. Bb3 {[%clk 0:02:38.1]} 13... Qc7 {[%clk 0:02:34.3]} 14. d4 {[%clk
0:02:38.1]} 14... Bd7 {[%clk 0:02:32]} 15. Be3 {[%clk 0:02:25.9]} 15... a5
{[%clk 0:02:31.8]} 16. Qd2 {[%clk 0:02:20.9]} 16... Rae8 {[%clk 0:02:27.8]} 17.
Bxh6 {[%clk 0:02:16.1]} 17... gxh6 {[%clk 0:02:25.5]} 18. Qxh6 {[%clk 0:02:17]}
18... d5 {[%clk 0:02:07.6]} 19. Ng5 {[%clk 0:02:08.5]} 19... Re6 {[%clk
0:01:40.9]} 20. Nh5 {[%clk 0:02:03.6]} 20... Rfe8 {[%clk 0:01:40.2]} 21. Qg7#
{[%clk 0:01:54.8]} 1-0

[Event "*** SCC Grand Prix: Titled Tuesday Blitz"]
[Site "Chess.com"]
[Date "2020.07.14"]
[Round "6"]
[White "Roza_Idrisova"]
[Black "Steven_Rojas"]
[Result "0-1"]
[WhiteElo "2243"]
[BlackElo "2401"]
[TimeControl "180+1"]
[EndTime "11:03:21 PDT"]
[Termination "Steven_Rojas won by resignation"]

1. d4 {[%clk 0:03:00.9]} 1... d5 {[%clk 0:02:59.8]} 2. Nf3 {[%clk 0:03:00.1]}
2... Nf6 {[%clk 0:03:00.2]} 3. Bg5 {[%clk 0:02:58.8]} 3... Ne4 {[%clk
0:03:00.1]} 4. Bf4 {[%clk 0:02:58.3]} 4... c5 {[%clk 0:02:59.2]} 5. c3 {[%clk
0:02:58.5]} 5... e6 {[%clk 0:02:49]} 6. e3 {[%clk 0:02:58.7]} 6... Bd6 {[%clk
0:02:43.2]} 7. Bg3 {[%clk 0:02:57.6]} 7... O-O {[%clk 0:02:41.9]} 8. Nbd2 {[%clk
0:02:57.4]} 8... f5 {[%clk 0:02:41.2]} 9. Bxd6 {[%clk 0:02:53.9]} 9... Qxd6
{[%clk 0:02:39.6]} 10. Bd3 {[%clk 0:02:53.7]} 10... Nc6 {[%clk 0:02:36.8]} 11.
g3 {[%clk 0:02:43.7]} 11... e5 {[%clk 0:02:33]} 12. dxe5 {[%clk 0:02:42.9]}
12... Nxe5 {[%clk 0:02:32.5]} 13. Nxe5 {[%clk 0:02:42.9]} 13... Qxe5 {[%clk
0:02:31.8]} 14. Nf3 {[%clk 0:02:41.3]} 14... Qe7 {[%clk 0:02:30.6]} 15. Bxe4
{[%clk 0:02:36.7]} 15... dxe4 {[%clk 0:02:27.8]} 16. Nh4 {[%clk 0:02:24.9]}
16... Be6 {[%clk 0:02:25.5]} 17. Qe2 {[%clk 0:02:21.2]} 17... Qf7 {[%clk
0:02:21.4]} 18. b3 {[%clk 0:02:19.8]} 18... Rfd8 {[%clk 0:02:18.8]} 19. Ng2
{[%clk 0:02:19.2]} 19... g5 {[%clk 0:02:15.6]} 20. h4 {[%clk 0:02:18.4]} 20...
h6 {[%clk 0:02:15.9]} 21. hxg5 {[%clk 0:02:18.2]} 21... hxg5 {[%clk 0:02:16.8]}
22. Qh5 {[%clk 0:02:17.6]} 22... Qg7 {[%clk 0:02:13.9]} 23. Rc1 {[%clk
0:02:10.6]} 23... Bf7 {[%clk 0:02:10.9]} 24. Qh6 {[%clk 0:02:07.3]} 24... Qxh6
{[%clk 0:02:09.5]} 25. Rxh6 {[%clk 0:02:06.3]} 25... Kg7 {[%clk 0:02:10.4]} 26.
Rh1 {[%clk 0:02:01.6]} 26... Rd3 {[%clk 0:02:08.6]} 27. Ke2 {[%clk 0:02:00.7]}
27... Rad8 {[%clk 0:02:08.9]} 28. Rhd1 {[%clk 0:02:00.4]} 28... Rxd1 {[%clk
0:02:08.9]} 29. Rxd1 {[%clk 0:01:59.7]} 29... Bh5+ {[%clk 0:02:09.4]} 30. f3
{[%clk 0:01:55.9]} 30... Bxf3+ {[%clk 0:02:07.6]} 0-1

[Event "*** SCC Grand Prix: Titled Tuesday Blitz"]
[Site "Chess.com"]
[Date "2020.07.14"]
[Round "6"]
[White "GuuBol"]
[Black "colegiodemadrid"]
[Result "1-0"]
[WhiteElo "2250"]
[BlackElo "2382"]
[TimeControl "180+1"]
[EndTime "11:03:33 PDT"]
[Termination "GuuBol won by resignation"]

1. e4 {[%clk 0:03:00.9]} 1... c5 {[%clk 0:02:59.7]} 2. d4 {[%clk 0:03:00.8]}
2... cxd4 {[%clk 0:02:59.6]} 3. c3 {[%clk 0:03:01.3]} 3... dxc3 {[%clk
0:02:58.6]} 4. Nxc3 {[%clk 0:03:02.2]} 4... Nc6 {[%clk 0:02:59.1]} 5. Nf3 {[%clk
0:03:02.7]} 5... Nf6 {[%clk 0:02:59.6]} 6. Bc4 {[%clk 0:03:03.1]} 6... e6 {[%clk
0:02:57.6]} 7. e5 {[%clk 0:03:00.3]} 7... Ng4 {[%clk 0:02:55.6]} 8. Qe2 {[%clk
0:02:56.2]} 8... Qc7 {[%clk 0:02:54.7]} 9. Bf4 {[%clk 0:02:43.8]} 9... f6 {[%clk
0:02:51.7]} 10. Nb5 {[%clk 0:02:24.4]} 10... Qb8 {[%clk 0:02:50.6]} 11. O-O
{[%clk 0:02:19.5]} 11... Ngxe5 {[%clk 0:02:44.4]} 12. Nxe5 {[%clk 0:02:18]}
12... Nxe5 {[%clk 0:02:41]} 13. Rfe1 {[%clk 0:02:16.2]} 13... d6 {[%clk
0:02:33.5]} 14. Nd4 {[%clk 0:02:05.8]} 14... d5 {[%clk 0:02:02.1]} 15. Bxe5
{[%clk 0:01:53.9]} 15... Qxe5 {[%clk 0:01:52.6]} 16. Bb5+ {[%clk 0:01:53.6]}
16... Bd7 {[%clk 0:01:50.2]} 17. Qg4 {[%clk 0:01:47.4]} 17... h5 {[%clk
0:01:27.1]} 18. Qg6+ {[%clk 0:01:43.9]} 1-0

[Event "*** SCC Grand Prix: Titled Tuesday Blitz"]
[Site "Chess.com"]
[Date "2020.07.14"]
[Round "6"]
[White "grunbergmihai"]
[Black "Manukyan_Artak"]
[Result "1-0"]
[WhiteElo "2522"]
[BlackElo "2364"]
[TimeControl "180+1"]
[EndTime "11:03:54 PDT"]
[Termination "grunbergmihai won by resignation"]

1. Nf3 {[%clk 0:03:00.9]} 1... c6 {[%clk 0:02:59.8]} 2. g3 {[%clk 0:03:00.2]}
2... d5 {[%clk 0:03:00.7]} 3. Bg2 {[%clk 0:03:00.5]} 3... Nf6 {[%clk 0:03:01.1]}
4. O-O {[%clk 0:02:54.1]} 4... Bf5 {[%clk 0:03:01.4]} 5. d3 {[%clk 0:02:54]}
5... Nbd7 {[%clk 0:03:01.6]} 6. c4 {[%clk 0:02:54.1]} 6... e6 {[%clk 0:03:01.6]}
7. Nc3 {[%clk 0:02:50.7]} 7... Be7 {[%clk 0:03:00.5]} 8. cxd5 {[%clk 0:02:49.3]}
8... cxd5 {[%clk 0:02:59.6]} 9. Qb3 {[%clk 0:02:48.6]} 9... Nc5 {[%clk
0:02:54.5]} 10. Qc2 {[%clk 0:02:47.7]} 10... Rc8 {[%clk 0:02:52.5]} 11. Nd4
{[%clk 0:02:33.9]} 11... Bg6 {[%clk 0:02:47.9]} 12. b4 {[%clk 0:02:25]} 12...
Ncd7 {[%clk 0:02:40.7]} 13. Qb3 {[%clk 0:02:19.8]} 13... O-O {[%clk 0:02:36.9]}
14. a3 {[%clk 0:02:12.5]} 14... h5 {[%clk 0:02:12.5]} 15. Bg5 {[%clk 0:02:05.5]}
15... Qb6 {[%clk 0:02:06.2]} 16. Nf3 {[%clk 0:02:01.1]} 16... Rfe8 {[%clk
0:02:04.9]} 17. Rac1 {[%clk 0:01:59]} 17... Kf8 {[%clk 0:01:53]} 18. h4 {[%clk
0:01:53.2]} 18... Ng4 {[%clk 0:01:50.2]} 19. Bxe7+ {[%clk 0:01:51.3]} 19... Rxe7
{[%clk 0:01:50.3]} 20. Nxd5 {[%clk 0:01:45.6]} 20... Qd8 {[%clk 0:01:30.2]} 21.
Nxe7 {[%clk 0:01:40.2]} 21... Rxc1 {[%clk 0:01:23.8]} 22. Nxg6+ {[%clk
0:01:39.3]} 1-0

[Event "*** SCC Grand Prix: Titled Tuesday Blitz"]
[Site "Chess.com"]
[Date "2020.07.14"]
[Round "6"]
[White "AlexOstrovskiy"]
[Black "amatatanav"]
[Result "1-0"]
[WhiteElo "2632"]
[BlackElo "2463"]
[TimeControl "180+1"]
[EndTime "11:04:38 PDT"]
[Termination "AlexOstrovskiy won by resignation"]

1. d4 {[%clk 0:03:00.9]} 1... Nf6 {[%clk 0:02:59.8]} 2. Bf4 {[%clk 0:02:55.4]}
2... e6 {[%clk 0:02:58.9]} 3. e3 {[%clk 0:02:54.6]} 3... b6 {[%clk 0:02:58.9]}
4. Qf3 {[%clk 0:02:54.4]} 4... d5 {[%clk 0:02:50.7]} 5. Nc3 {[%clk 0:02:53.7]}
5... Bb4 {[%clk 0:02:33.7]} 6. Ne2 {[%clk 0:02:52.8]} 6... h6 {[%clk 0:01:52]}
7. a3 {[%clk 0:02:43.8]} 7... Bd6 {[%clk 0:01:52]} 8. g4 {[%clk 0:02:37.2]} 8...
Ba6 {[%clk 0:01:22.1]} 9. Bg2 {[%clk 0:02:25.6]} 9... Nc6 {[%clk 0:01:05.8]} 10.
O-O-O {[%clk 0:02:19.3]} 10... Qe7 {[%clk 0:01:00.7]} 11. h4 {[%clk 0:02:09.7]}
11... Ne4 {[%clk 0:00:29.6]} 12. Nxe4 {[%clk 0:02:05.8]} 12... Bxa3 {[%clk
0:00:12.9]} 13. bxa3 {[%clk 0:02:00.5]} 13... Qxa3+ {[%clk 0:00:13.8]} 14. Kd2
{[%clk 0:02:01]} 14... dxe4 {[%clk 0:00:02.8]} 15. Qxe4 {[%clk 0:02:01.9]} 15...
Bb7 {[%clk 0:00:02.8]} 16. Qd3 {[%clk 0:01:59.5]} 16... Na5 {[%clk 0:00:02.8]}
17. Qxa3 {[%clk 0:01:58.6]} 1-0